bitfinex-derivatives/quotes_SOLF0:USTF0_20250413
["timestamp","ask_amount","ask_price","bid_price","bid_amount"]
[1744515191991,0.05043569,132.01,131.99,0.04911606]
[1744515193394,0.05043569,132.01,131.99,7.62741606]
[1744515193596,2.8317,132.07,131.99,0.04911606]
[1744515193797,29.4,132.13,132.04,9.93649961]
[1744515194094,7.5717,132.11,132.07,7.5734]
[1744515194290,29.4,132.13,132.06,9.93649961]
[1744515194990,0.04897497,132.11,132.08,0.05022039]
[1744515195190,0.04897497,132.11,132.08,29.45022039]
[1744515196188,0.04897497,132.11,132.08,0.05022039]
[1744515196697,0.04897497,132.11,132.08,7.62342039]
[1744515196900,0.04897497,132.11,132.08,9.98672]
[1744515197197,0.04897497,132.11,132.09,29.38]
[1744515198298,0.04897497,132.11,132.1,7.5721]
[1744515200502,0.04897497,132.11,132.09,7.5725]
[1744515200697,0.04897497,132.11,132.08,0.05022039]
[1744515200897,0.04897497,132.11,132.08,7.62302039]
[1744515201397,0.04897497,132.11,132.09,7.5725]
[1744515201700,0.04897497,132.11,132.08,0.05022039]
[1744515202001,0.04897497,132.11,132.09,7.5727]
[1744515202301,0.04897497,132.11,132.08,0.05022039]
[1744515202501,0.04897497,132.11,132.1,7.5721]
[1744515203199,29.36,132.16,132.12,7.5707]
[1744515203400,29.36,132.16,132.08,9.93649961]
[1744515203599,7.5696,132.15,132.08,9.93649961]
[1744515203800,7.5696,132.15,132.1,7.572]
[1744515204404,7.5698,132.14,132.11,0.04943501]
[1744515204598,7.5698,132.14,132.11,7.62083501]
[1744515205199,7.5704,132.13,132.11,0.04943501]
[1744515205804,39.29649961,132.16,132.11,0.04943501]
[1744515205805,36.9288,132.16,132.12,7.5706]
[1744515206199,29.36,132.16,132.11,0.04943501]
[1744515207298,7.5697,132.15,132.11,7.62073501]
[1744515208006,36.9289,132.16,132.12,7.5708]
[1744515208304,36.9289,132.16,132.11,0.04943501]
[1744515208604,36.9289,132.16,132.13,7.5703]
[1744515208806,7.5694,132.15,132.11,0.04943501]
[1744515209206,29.36,132.16,132.11,0.04943501]
[1744515209407,7.57,132.14,132.11,0.04943501]
[1744515209706,7.57,132.14,132.11,7.62093501]
[1744515211506,7.5685,132.17,132.11,0.04943501]
[1744515211809,9.93649961,132.26,132.15,9.93649961]
[1744515212010,5.5772,132.25,132.15,9.93649961]
[1744515212206,5.5772,132.25,132.17,7.5679]
[1744515212510,9.93649961,132.2,132.19,0.00368875]
[1744515212810,7.5686,132.17,132.13,7.5699]
[1744515213110,39.29649961,132.2,132.11,9.93649961]
[1744515213510,7.5675,132.19,132.14,7.5695]
[1744515213710,39.29649961,132.2,132.14,7.5695]
[1744515214008,0.05500206,132.18,132.15,0.0563335]
[1744515214912,7.62250206,132.18,132.15,0.0563335]
[1744515215509,1.31676032,132.29,132.18,358.0]
[1744515215805,105.93398425,132.32,132.25,9.93649961]
[1744515216005,105.93398425,132.32,132.26,29.36]
[1744515216208,113.49388425,132.32,132.26,29.36]
[1744515216711,113.49388425,132.32,132.28,0.04861668]
[1744515217914,105.93398425,132.32,132.28,0.04861668]
[1744515218211,29.34,132.31,132.28,0.04861668]
[1744515219012,7.5612,132.29,132.28,0.04861668]
[1744515223016,7.5636,132.25,132.2,5.8287]
[1744515223211,12.87749961,132.32,132.11,15.1424]
[1744515223212,9.93649961,132.23,132.13,39.27649961]
[1744515223517,29.34,132.26,132.15,9.93649961]
[1744515223711,29.34,132.26,132.17,9.93649961]
[1744515223913,29.34,132.26,132.18,29.34]
[1744515224412,0.0482207,132.23,132.21,0.04838051]
[1744515226213,0.0482207,132.23,132.21,7.61398051]
[1744515226616,0.0482207,132.23,132.22,7.5652]
[1744515227219,0.0482207,132.23,132.21,7.61398051]
[1744515227515,0.0482207,132.23,132.21,0.04838051]
[1744515228516,7.6133207,132.23,132.21,0.04838051]
[1744515232925,0.0482207,132.23,132.21,0.04838051]
[1744515233528,7.6129207,132.23,132.21,0.04838051]
[1744515235328,0.0482207,132.23,132.21,7.61378051]
[1744515235725,0.0482207,132.23,132.21,0.04838051]
[1744515235928,7.5629,132.27,132.23,7.5643]
[1744515236227,45.41449961,132.31,132.22,29.32]
[1744515236427,35.478,132.31,132.23,2.9349]
[1744515236626,7.5619,132.28,132.25,7.5631]
[1744515236923,32.3941,132.31,132.25,7.5631]
[1744515237226,7.5615,132.29,132.25,7.61678467]
[1744515238127,7.5615,132.29,132.26,7.5629]
[1744515238323,7.5615,132.29,132.25,0.05368467]
[1744515239628,7.5609,132.3,132.26,7.5625]
[1744515240230,29.32,132.31,132.26,7.5625]
[1744515240925,7.5615,132.29,132.25,7.61718467]
[1744515242435,7.5615,132.29,132.26,7.5628]
[1744515242732,7.5609,132.3,132.26,7.5628]
[1744515242932,29.32,132.31,132.27,7.5619]
[1744515243333,29.32,132.31,132.28,0.05513946]
[1744515243529,7.5607,132.3,132.28,0.05513946]
[1744515243735,29.32,132.31,132.28,0.05513946]
[1744515244142,7.5611,132.3,132.28,0.05513946]
[1744515244531,9.93649961,132.34,132.28,0.05513946]
[1744515244735,9.93649961,132.34,132.27,29.3]
[1744515244933,9.93649961,132.34,132.3,0.05604546]
[1744515245731,7.559,132.33,132.3,0.05604546]
[1744515246236,7.5586,132.34,132.3,7.61664546]
[1744515246836,7.5591,132.33,132.3,7.61664546]
[1744515247138,15.58189961,132.36,132.3,0.05604546]
[1744515248638,7.5593,132.33,132.3,0.05604546]
[1744515252443,7.5586,132.34,132.3,7.61664546]
[1744515253442,7.559,132.33,132.3,0.05604546]
[1744515255846,7.559,132.33,132.3,7.61654546]
[1744515257441,12.75239961,132.36,132.3,7.61654546]
[1744515257442,2.8488,132.39,132.31,9.93649961]
[1744515257638,39.21649961,132.41,132.32,29.28]
[1744515257837,7.5558,132.39,132.35,7.5578]
[1744515258241,7.5558,132.39,132.36,0.05516724]
[1744515258442,7.5558,132.39,132.36,7.61226724]
[1744515258642,7.5558,132.39,132.36,0.05516724]
[1744515259040,7.5561,132.38,132.36,0.05516724]
[1744515259246,9.93649961,132.39,132.36,0.05516724]
[1744515259440,8.6993,132.42,132.36,29.33516724]
[1744515259441,18.63579961,132.42,132.36,29.33516724]
[1744515259639,8.6993,132.42,132.36,29.33516724]
[1744515260040,7.555,132.4,132.36,29.33516724]
[1744515260843,7.555,132.4,132.37,7.5566]
[1744515262545,7.5547,132.41,132.38,7.5561]
[1744515262942,7.5547,132.41,132.38,7.61242881]
[1744515264146,7.5547,132.41,132.38,0.05632881]
[1744515264544,373.93649961,132.48,132.38,0.05632881]
[1744515264743,8.8985,132.47,132.36,39.21649961]
[1744515264944,7.553,132.44,132.42,0.05063188]
[1744515265344,8.8985,132.47,132.42,0.05063188]
[1744515265540,7.5532,132.44,132.42,0.05063188]
[1744515266049,7.5532,132.43,132.42,0.05063188]
[1744515266943,8.8985,132.47,132.42,0.05063188]
[1744515267449,8.8985,132.47,132.42,7.60403188]
[1744515267849,7.5521,132.45,132.42,7.60403188]
[1744515269354,7.5521,132.45,132.42,36.86403188]
[1744515269552,7.5516,132.46,132.43,7.5532]
[1744515269753,2.8262,132.47,132.42,29.31063188]
[1744515270061,29.28,132.49,132.42,29.31063188]
[1744515270252,608.75649961,132.51,132.42,29.31063188]
[1744515270453,608.75649961,132.51,132.42,29.26]
[1744515270653,7.5513,132.47,132.45,0.05787909]
[1744515272354,7.5515,132.46,132.45,0.05787909]
[1744515272746,7.5508,132.48,132.45,0.05787909]
[1744515273155,7.5508,132.48,132.45,7.60997909]
[1744515273356,7.55,132.49,132.46,29.26]
[1744515273753,39.19649961,132.55,132.46,29.31282413]
[1744515273956,39.19649961,132.55,132.46,29.26]
[1744515274156,39.19649961,132.55,132.49,0.05739539]
[1744515275759,7.5491,132.51,132.49,0.05739539]
[1744515276058,39.19649961,132.55,132.49,0.05739539]
[1744515276258,7.5475,132.53,132.5,29.26]
[1744515276460,18.74229961,132.56,132.48,29.26]
[1744515276663,18.74229961,132.56,132.5,0.05545082]
[1744515277363,7.5484,132.52,132.5,0.05545082]
[1744515278261,7.5487,132.51,132.5,0.05545082]
[1744515279059,7.5484,132.52,132.5,0.05545082]
[1744515279265,9.93649961,132.56,132.5,0.05545082]
[1744515279455,7.5472,132.54,132.5,0.05545082]
[1744515279759,7.5472,132.54,132.5,7.60435082]
[1744515281760,7.5466,132.55,132.5,9.99195043]
[1744515282062,8.8377,132.57,132.5,9.99195043]
[1744515282359,8.8377,132.57,132.52,7.5478]
[1744515282559,8.8377,132.57,132.53,29.24]
[1744515282757,5.8282,132.57,132.53,29.29337547]
[1744515283158,3.0308,132.59,132.54,29.24]
[1744515283662,7.5456,132.57,132.54,29.24]
[1744515283962,7.5456,132.57,132.54,36.7868]
[1744515284663,6.1717,132.62,132.55,7.5464]
[1744515285057,6.1717,132.62,132.57,0.05680936]
[1744515285658,7.5447,132.58,132.57,0.05680936]
[1744515286059,39.17649961,132.6,132.52,29.24]
[1744515286260,7.5467,132.55,132.51,36.7883]
[1744515287065,0.05316406,132.54,132.52,0.0477574]
[1744515290462,0.05316406,132.54,132.52,7.5957574]
[1744515290663,0.05316406,132.54,132.52,0.0477574]
[1744515291059,6.1717,132.62,132.52,9.98425701]
[1744515291264,6.1717,132.62,132.54,9.93649961]
[1744515291465,7.5439,132.6,132.55,29.22]
[1744515291665,7.5439,132.6,132.56,7.5456]
[1744515292263,0.02307746,132.59,132.57,0.05094865]
[1744515293466,0.02307746,132.59,132.57,29.27094865]
[1744515294170,0.02307746,132.59,132.58,9.93649961]
[1744515294669,0.02307746,132.59,132.58,17.48119961]
[1744515294864,2.9771,132.66,132.58,9.93649961]
[1744515295063,7.5394,132.68,132.64,17.47759961]
[1744515295264,2.9771,132.71,132.67,9.93649961]
[1744515295465,2.9771,132.71,132.69,9.93649961]
[1744515295664,7.5371,132.72,132.69,9.93649961]
[1744515295873,7.5371,132.72,132.69,9.98560897]
[1744515296272,108.87168425,132.73,132.65,9.93649961]
[1744515297171,108.87168425,132.73,132.69,9.93649961]
[1744515297371,0.04910936,132.7,132.69,9.93649961]
[1744515297564,108.87168425,132.73,132.69,9.93649961]
[1744515297766,108.87168425,132.73,132.68,0.05425738]
[1744515298175,2.9377,132.73,132.68,0.05425738]
[1744515298674,7.538,132.7,132.68,0.05425738]
[1744515298876,2.9377,132.73,132.68,0.05425738]
[1744515299286,7.5384,132.69,132.68,0.05425738]
[1744515299471,9.93649961,132.71,132.62,29.2]
[1744515299776,7.5406,132.66,132.62,29.2]
[1744515300271,7.5411,132.65,132.62,29.2]
[1744515300571,7.5411,132.65,132.6,9.93649961]
[1744515300776,0.04890112,132.65,132.62,0.04872882]
[1744515301278,0.04890112,132.65,132.62,7.59072882]
[1744515301578,0.04890112,132.65,132.62,0.04872882]
[1744515301779,0.04890112,132.65,132.62,9.98522843]
[1744515303583,32.1377,132.73,132.64,9.93649961]
[1744515303782,2.9377,132.73,132.66,9.93649961]
[1744515303980,2.9771,132.75,132.68,17.47499961]
[1744515304180,2.9771,132.75,132.69,29.2]
[1744515304681,7.5371,132.72,132.68,17.47499961]
[1744515304885,7.5371,132.72,132.71,0.05219256]
[1744515308287,7.5364,132.73,132.71,0.05219256]
[1744515309191,5.6502,132.79,132.71,0.05219256]
[1744515309383,5.6502,132.79,132.7,9.93649961]
[1744515309579,2.9022,132.81,132.74,0.05770215]
[1744515309787,7.5331,132.79,132.75,36.7147]
[1744515310284,7.532,132.81,132.76,0.05473766]
[1744515310689,2.8895,132.84,132.78,9.93649961]
[1744515310890,7.5308,132.83,132.79,29.18]
[1744515311187,2.8658,132.86,132.8,0.04769776]
[1744515311390,7.5298,132.85,132.8,7.57949776]
[1744515311586,7.5298,132.85,132.79,29.18]
[1744515311783,7.5284,132.87,132.82,7.5309]
[1744515311988,32.0904,132.9,132.83,29.18]
[1744515312184,2.8895,132.92,132.83,29.23797527]
[1744515312383,597.06,132.96,132.86,7.5287]
[1744515312589,8.8079,133.0,132.87,29.18]
[1744515312893,7.5235,132.96,132.92,0.04987346]
[1744515313093,8.8079,133.0,132.9,29.18]
[1744515313291,24.53072253,133.0,132.93,0.05329906]
[1744515313591,1.38310619,132.99,132.93,0.05329906]
[1744515313786,8.8079,133.0,132.93,29.23329906]
[1744515313991,2.9104,133.0,132.93,29.23329906]
[1744515314192,2.9104,133.0,132.93,0.05329906]
[1744515314497,32.0704,133.0,132.93,0.05329906]
[1744515314694,7.523,132.97,132.93,0.05329906]
[1744515314893,32.0704,133.0,132.93,0.05329906]
[1744515315194,7.5242,132.94,132.93,0.05329906]
[1744515316293,7.5237,132.95,132.93,0.05329906]
[1744515316892,47.79322253,133.0,132.93,0.05329906]
[1744515318295,7.5242,132.94,132.93,0.05329906]
[1744515322799,7.5229,132.97,132.93,29.17329906]
[1744515323194,29.12,133.02,132.93,29.17329906]
[1744515323393,29.12,133.02,132.94,3.0623]
[1744515323595,29.12,133.02,132.96,0.05417139]
[1744515323800,7.5213,133.0,132.97,29.12]
[1744515324001,5.9416,133.03,132.97,29.12]
[1744515324303,5.9416,133.03,132.97,0.05671248]
[1744515325406,7.522,132.98,132.97,0.05671248]
[1744515329606,7.5237,132.95,132.94,29.12]
[1744515329803,15.72282253,133.0,132.91,29.1]
[1744515330204,29.12,133.01,132.91,29.1]
[1744515330909,0.05471789,132.97,132.95,0.04899116]
[1744515331808,7.5231,132.96,132.95,0.04899116]
[1744515337807,7.5231,132.96,132.95,9.116e-05]
[1744515338012,16.3265,132.96,132.84,2.8702]
[1744515338209,15.72282253,132.94,132.84,2.8702]
[1744515338410,7.5292,132.86,132.82,625.12]
[1744515338606,29.1,132.88,132.81,3.0439]
[1744515338807,29.1,132.87,132.78,39.5607]
[1744515339008,0.05572875,132.84,132.81,0.04905815]
[1744515339604,7.531,132.82,132.81,0.04905815]
[1744515339804,0.05572875,132.84,132.81,0.04905815]
[1744515342912,7.531,132.82,132.81,0.04905815]
[1744515343117,29.12,132.82,132.71,29.12]
[1744515343316,29.12,132.82,132.72,2.9671]
[1744515343518,7.532,132.81,132.75,7.5345]
[1744515343713,29.12,132.82,132.75,7.5345]
[1744515344118,7.5326,132.8,132.75,7.5345]
[1744515344321,0.04999955,132.8,132.77,0.05376989]
[1744515344510,29.12,132.82,132.77,0.05376989]
[1744515344816,7.5331,132.79,132.77,0.05376989]
[1744515346020,7.58194502,132.8,132.77,0.05376989]
[1744515346223,0.04954502,132.8,132.77,0.05376989]
[1744515346622,7.5333,132.78,132.77,0.05376989]
[1744515347214,36.6533,132.78,132.77,0.05376989]
[1744515347418,44.84282253,132.78,132.67,1.31100605]
[1744515347721,15.72282253,132.75,132.65,2.9696]
[1744515347924,32.0091,132.74,132.65,2.9696]
[1744515348417,0.05130566,132.71,132.68,0.05331517]
[1744515349726,7.5384,132.69,132.68,0.05331517]
[1744515354133,29.12,132.7,132.68,0.05331517]
[1744515354528,0.05130566,132.71,132.68,0.05331517]
[1744515355232,0.05130566,132.71,132.68,7.59191517]
[1744515357028,15.72282253,132.84,132.69,15.72282253]
[1744515357229,7.5324,132.8,132.72,15.72282253]
[1744515357430,29.14,132.82,132.75,7.5345]
[1744515357833,7.5339,132.77,132.74,36.6754]
[1744515358235,29.14,132.82,132.74,29.1966625]
[1744515358435,0.04773368,132.77,132.74,29.14]
[1744515358631,29.14,132.82,132.77,0.05388161]
[1744515358837,625.92,132.85,132.75,18.73352253]
[1744515359638,29.14,132.88,132.75,18.73352253]
[1744515359840,0.05278599,132.81,132.79,0.05796348]
[1744515360138,7.5303,132.84,132.8,7.5321]
[1744515360343,44.86282253,132.88,132.79,29.14]
[1744515360541,0.05412554,132.83,132.81,0.0508753]
[1744515360743,44.86282253,132.88,132.81,0.0508753]
[1744515361044,0.05630771,132.83,132.81,0.0508753]
[1744515361239,29.14,132.91,132.81,15.72282253]
[1744515361439,7.527,132.9,132.85,7.5293]
[1744515362344,0.05518941,132.89,132.86,7.58526559]
[1744515362846,0.05518941,132.89,132.87,7.5278]
[1744515363043,0.05518941,132.89,132.86,0.05656559]
[1744515363543,0.05518941,132.89,132.87,7.5282]
[1744515364245,0.05518941,132.89,132.88,7.5276]
[1744515365145,0.05518941,132.89,132.87,7.528]
[1744515365348,0.05518941,132.89,132.86,0.05656559]
[1744515365746,0.05518941,132.89,132.87,36.6482]
[1744515366047,0.05518941,132.89,132.87,29.12]
[1744515366448,0.05518941,132.89,132.87,36.648]
[1744515366945,0.05518941,132.89,132.87,29.12]
[1744515367146,0.05518941,132.89,132.87,32.0532]
[1744515367548,29.12,132.94,132.87,32.0532]
[1744515367741,5.9417,132.98,132.87,32.0532]
[1744515367742,29.12,132.97,132.87,32.0532]
[1744515368648,29.12,132.97,132.91,0.05570998]
[1744515368849,7.5241,132.95,132.91,0.05570998]
[1744515369950,7.5243,132.94,132.91,0.05570998]
[1744515370752,29.12,132.97,132.91,0.05570998]
[1744515374649,7.5245,132.94,132.91,0.05570998]
[1744515375155,29.12,132.97,132.91,0.05570998]
[1744515375958,7.5246,132.94,132.91,0.05570998]
[1744515376154,29.12,132.97,132.91,0.05570998]
[1744515376456,7.5233,132.96,132.91,0.05570998]
[1744515376656,29.12,132.97,132.92,7.525]
[1744515376950,29.12,132.97,132.92,13.6827]
[1744515377156,29.12,132.97,132.91,0.05570998]
[1744515378452,29.08,133.0,132.92,29.08]
[1744515378655,7.5227,132.97,132.93,7.5248]
[1744515378950,7.5227,132.97,132.95,0.05059712]
[1744515381154,7.5231,132.96,132.95,0.05059712]
[1744515381360,29.08,132.96,132.89,29.08]
[1744515381859,7.5257,132.92,132.89,29.08]
[1744515382559,7.57421552,132.92,132.89,29.13127801]
[1744515382758,0.04851552,132.92,132.89,0.05127801]
[1744515383259,29.12851552,132.92,132.89,0.05127801]
[1744515384265,7.5265,132.9,132.89,0.05127801]
[1744515386165,29.12851552,132.92,132.84,29.08]
[1744515386360,29.08,132.92,132.84,29.08]
[1744515386666,7.5286,132.87,132.84,29.08]
[1744515387161,7.58437792,132.87,132.84,29.13312059]
[1744515387562,0.05577792,132.87,132.84,0.05312059]
[1744515388064,0.05577792,132.87,132.85,36.609]
[1744515388365,0.05577792,132.87,132.84,0.05312059]
[1744515388663,7.5293,132.85,132.84,0.05312059]
[1744515388865,0.05577792,132.87,132.84,0.05312059]
[1744515389858,5.9264,132.94,132.84,15.77594312]
[1744515390058,29.08,132.97,132.85,2.9584]
[1744515390464,7.5263,132.91,132.87,7.5279]
[1744515390665,7.5263,132.91,132.87,36.6079]
[1744515390862,29.08,132.97,132.87,29.08]
[1744515391058,0.04801148,132.9,132.88,0.05678733]
[1744515391764,36.6071,132.89,132.88,0.05678733]
[1744515391963,29.08,132.89,132.83,29.08]
[1744515392159,7.5285,132.87,132.83,29.08]
[1744515392759,7.5285,132.87,132.83,36.6102]
[1744515392968,0.05013694,132.86,132.84,0.05447989]
[1744515393471,7.57933694,132.86,132.84,0.05447989]
[1744515394167,7.5293,132.85,132.84,0.05447989]
[1744515396271,0.05013694,132.86,132.84,0.05447989]
[1744515396470,0.05013694,132.86,132.84,7.58397989]
[1744515397568,0.05013694,132.86,132.84,0.05447989]
[1744515398072,7.57923694,132.86,132.84,0.05447989]
[1744515398968,0.05013694,132.86,132.84,0.05447989]
[1744515399977,7.57903694,132.86,132.84,0.05447989]
[1744515400275,0.05013694,132.86,132.84,0.05447989]
[1744515400470,7.5293,132.85,132.8,29.1]
[1744515400676,7.5293,132.85,132.75,611.80282253]
[1744515400677,15.72282253,132.82,132.73,29.1]
[1744515401275,15.72282253,132.82,132.73,36.6358]
[1744515401677,15.72282253,132.82,132.76,0.04937974]
[1744515401678,0.05395416,132.79,132.76,0.04937974]
[1744515401976,7.5339,132.77,132.76,0.04937974]
[1744515402878,7.5335,132.78,132.76,0.04937974]
[1744515403275,0.05395416,132.79,132.76,0.04937974]
[1744515403580,7.5333,132.78,132.76,0.04937974]
[1744515404273,7.5339,132.77,132.76,0.04937974]
[1744515407280,7.5357,132.74,132.7,3.0491]
[1744515407879,7.5357,132.74,132.7,10.5869]
[1744515408381,0.04752566,132.73,132.71,0.04759561]
[1744515410377,0.04752566,132.73,132.72,7.5367]
[1744515410580,29.78,132.79,132.71,0.04759561]
[1744515410780,29.78,132.79,132.7,21.75052253]
[1744515411081,29.78,132.79,132.7,6.0277]
[1744515411584,0.05749419,132.76,132.73,0.05292505]
[1744515412883,0.05749419,132.76,132.73,7.58872505]
[1744515413982,0.05749419,132.76,132.74,7.5355]
[1744515414182,0.05749419,132.76,132.73,29.83292505]
[1744515414782,0.05749419,132.76,132.75,7.535]
[1744515415881,0.05749419,132.76,132.73,29.83292505]
[1744515416585,0.05749419,132.76,132.73,37.36892505]
[1744515417184,0.05749419,132.76,132.73,29.83292505]
[1744515417381,0.05749419,132.76,132.73,0.05292505]
[1744515417781,7.535,132.75,132.73,0.05292505]
[1744515418581,7.5356,132.74,132.73,0.05292505]
[1744515419784,29.78,132.74,132.68,3.0344]
[1744515420181,29.78,132.77,132.68,3.0344]
[1744515420384,7.5353,132.75,132.71,7.537]
[1744515420887,0.05724709,132.74,132.72,0.05596267]
[1744515421288,0.05724709,132.74,132.73,7.5362]
[1744515424989,0.05724709,132.74,132.72,0.05596267]
[1744515426991,0.05724709,132.74,132.72,7.59256267]
[1744515428088,7.59304709,132.74,132.72,0.05596267]
[1744515429593,0.05724709,132.74,132.72,7.59266267]
[1744515430092,0.05724709,132.74,132.72,0.05596267]
[1744515431193,7.5362,132.73,132.72,0.05596267]
[1744515433191,0.05724709,132.74,132.65,35.4793]
[1744515433394,29.78,132.73,132.65,35.4793]
[1744515433592,29.78,132.73,132.65,45.32616296]
[1744515433995,7.5375,132.71,132.67,7.5393]
[1744515434296,0.05668983,132.7,132.68,0.04904715]
[1744515434593,7.59488983,132.7,132.68,0.04904715]
[1744515435494,7.5384,132.69,132.68,0.04904715]
[1744515435683,0.05668983,132.7,132.68,0.04904715]
[1744515435994,7.59508983,132.7,132.68,0.04904715]
[1744515436690,7.5384,132.69,132.68,0.04904715]
[1744515437297,7.59468983,132.7,132.68,0.04904715]
[1744515437800,0.05668983,132.7,132.68,7.58754715]
[1744515439599,0.05668983,132.7,132.68,0.04904715]
[1744515440999,0.05668983,132.7,132.68,7.58794715]
[1744515441294,0.05668983,132.7,132.68,0.04904715]
[1744515441599,36.9947,132.76,132.72,7.5364]
[1744515442097,36.9947,132.76,132.7,3.0147]
[1744515442292,36.9947,132.76,132.73,7.536]
[1744515442693,37.04994937,132.76,132.73,7.5928926]
[1744515443603,29.51524937,132.76,132.73,7.5928926]
[1744515444903,37.04974937,132.76,132.73,0.0568926]
[1744515445104,29.51524937,132.76,132.73,0.0568926]
[1744515445505,29.51524937,132.76,132.73,7.5926926]
[1744515446702,37.04974937,132.76,132.73,7.5926926]
[1744515446904,29.51524937,132.76,132.73,0.0568926]
[1744515447202,7.5356,132.74,132.73,0.0568926]
[1744515450509,7.5384,132.7,132.66,32.2885]
[1744515450912,29.46,132.72,132.66,32.2885]
[1744515451411,7.5387,132.69,132.66,39.8283]
[1744515451611,7.59077646,132.69,132.66,37.04737404]
[1744515451807,7.59077646,132.69,132.66,7.58737404]
[1744515453007,7.5391,132.68,132.66,0.04757404]
[1744515454313,7.59077646,132.69,132.66,7.58757404]
[1744515454814,0.05207646,132.69,132.66,0.04757404]
[1744515455313,7.5428,132.62,132.58,37.0045]
[1744515456219,7.543,132.61,132.58,29.46]
[1744515456415,0.04786715,132.61,132.59,0.05439797]
[1744515462020,7.59086715,132.61,132.59,0.05439797]
[1744515462215,0.04786715,132.61,132.59,0.05439797]
[1744515462622,9.89473011,132.61,132.59,0.05439797]
[1744515462919,37.0235,132.6,132.59,0.05439797]
[1744515463917,7.5454,132.57,132.53,604.5073]
[1744515465021,0.04953589,132.56,132.54,0.04874885]
[1744515466226,7.59543589,132.56,132.54,0.04874885]
[1744515466921,7.5464,132.55,132.54,0.04874885]
[1744515467627,0.04953589,132.56,132.54,0.04874885]
[1744515469528,7.59573589,132.56,132.54,0.04874885]
[1744515474942,0.04953589,132.56,132.55,7.5464]
[1744515475141,29.48,132.6,132.54,0.04874885]
[1744515475342,29.48,132.6,132.54,5.73224885]
[1744515475542,7.5442,132.59,132.56,7.5455]
[1744515475742,7.5442,132.59,132.54,5.6835]
[1744515475944,29.48,132.6,132.54,5.6835]
[1744515476243,0.05724872,132.58,132.56,0.05790639]
[1744515476745,7.60194872,132.58,132.56,0.05790639]
[1744515477945,0.05724872,132.58,132.56,0.05790639]
[1744515478746,0.05724872,132.58,132.56,7.60370639]
[1744515479046,0.05724872,132.58,132.56,0.05790639]
[1744515480248,0.05724872,132.58,132.56,7.60350639]
[1744515482853,0.05724872,132.58,132.56,0.05790639]
[1744515483244,6.31834462,132.57,132.56,0.05790639]
[1744515484357,13.86354462,132.57,132.56,0.05790639]
[1744515485250,7.5452,132.57,132.56,0.05790639]
[1744515493957,7.5452,132.57,132.56,0.0043825]
[1744515499758,36.7252,132.57,132.56,0.0043825]
[1744515504457,7.5499,132.49,132.46,3.0895]
[1744515504659,9.87179395,132.51,132.44,2.8848]
[1744515504856,29.16,132.5,132.44,2.8848]
[1744515505057,29.16,132.51,132.44,2.8848]
[1744515505357,7.5502,132.49,132.45,7.5517]
[1744515505564,29.16,132.54,132.46,9.92643195]
[1744515505862,626.86,132.55,132.46,9.87179395]
[1744515506065,7.5473,132.54,132.49,7.5496]
[1744515506865,0.05493164,132.53,132.5,7.60295772]
[1744515507065,7.60253164,132.53,132.5,0.05375772]
[1744515507765,0.05493164,132.53,132.5,7.60295772]
[1744515508867,7.60253164,132.53,132.5,7.60295772]
[1744515509168,7.60253164,132.53,132.5,0.05375772]
[1744515509169,0.05493164,132.53,132.5,0.05375772]
[1744515509568,0.05493164,132.53,132.51,6.31947361]
[1744515510064,0.05493164,132.53,132.51,12.25587361]
[1744515510470,0.05493164,132.53,132.52,7.5481]
[1744515510671,29.18,132.58,132.53,6.31947361]
[1744515511069,7.5446,132.59,132.56,7.5458]
[1744515511672,7.60149275,132.59,132.56,7.60197616]
[1744515512372,0.05689275,132.59,132.56,7.60177616]
[1744515513174,7.60109275,132.59,132.56,0.05617616]
[1744515515380,7.5448,132.58,132.56,0.05617616]
[1744515518479,7.5452,132.57,132.56,0.05617616]
[1744515524186,36.7052,132.57,132.56,0.05617616]
[1744515526883,7.5483,132.52,132.49,35.47947361]
[1744515527079,6.31947361,132.54,132.49,29.16]
[1744515527285,6.31947361,132.52,132.49,29.16]
[1744515527481,6.31947361,132.5,132.46,2.8137]
[1744515527682,6.31947361,132.48,132.42,8.7153]
[1744515527889,6.31947361,132.45,132.42,8.7153]
[1744515528185,7.5527,132.44,132.42,8.7153]